Cogmind - Beta 12 @@@ ROGUE MODE // 2023.12.28 @ 21:26:04 Player: Ischenous Result: Destroyed by exploding Fusion Modulator Performance ------------- Evolutions (3) 1500 Regions Visited (5) 1000 Robots Destroyed (36) 180 Value Destroyed (1456) 1456 Prototype IDs (0) 0 Alien Tech Used (0) 0 Bonus (160) 160 TOTAL SCORE: 4296 Bonus ------- Follower Combat Kills 160 Cogmind --------- Core Integrity 0/700 Matter 253/300 Energy 100/100 System Corruption 0% Temperature Cool (24) Movement Flying (115) Ox1 Location -7/Factory Parts ------- > --- POWER (2) -------- (None) > --- PROPULSION (3) --- VTOL Module > --- UTILITY (6) ------ Advanced Targeting Computer Transmission Jammer > --- WEAPON (2) ------- Gauss Rifle > --- INVENTORY (5) ---- Improved Datajack Peak State ------------ > --- POWER ------------ Improved Deuterium Engine > --- PROPULSION ------- Aluminum Leg Carbon-fiber Leg Titanium Leg > --- UTILITY ---------- Small Storage Unit Advanced ECM Suite > --- WEAPON ----------- Spread Laser Gauss Rifle > --- INVENTORY -------- Aluminum Leg Compact Wheel Compact Wheel Hacking Suite Ion Cannon Assault Rifle [Rating: 23] Favorites ----------- Power Light Nuclear Core Engine Light Angular Momentum Engine Power Core Light Nuclear Core Propulsion Carbon-fiber Leg Leg Carbon-fiber Leg Wheel Wheel Hover Unit Gravmag System Flight Unit VTOL Module Utility Small Storage Unit Device Advanced ECM Suite Storage Small Storage Unit Processor Targeting Computer Weapon Assault Rifle Energy Gun Spread Laser Energy Cannon Ion Cannon Ballistic Gun Assault Rifle Launcher Rocket Launcher Special Melee Weapon Improved Datajack Build | -11 -10 -10 -9 -8 -7 ------- Run | Jun Mat Min Mat Mat Fac Slots Evolved 6 | . . . 2 2 2 Power 1 | . . . . . 1 Propulsion 1 | . . . . 1 . Utility 4 | . . . 2 1 1 Weapon . | . . . . . . Parts Attached 47 | 6 . 1 6 22 12 Power 6 | 1 . 1 1 3 . Engine 4 | 1 . . 1 2 . Core 2 | . . 1 . 1 . Reactor . | . . . . . . Propulsion 16 | 2 . . 2 7 5 Treads . | . . . . . . Leg 9 | . . . 2 7 . Wheel 4 | 2 . . . . 2 Hover 1 | . . . . . 1 Flight 2 | . . . . . 2 Utility 7 | 1 . . 1 3 2 Device 4 | . . . 1 2 1 Storage 1 | 1 . . . . . Processor 2 | . . . . 1 1 Hackware . | . . . . . . Protection . | . . . . . . Artifact . | . . . . . . Weapon 18 | 2 . . 2 9 5 Energy Gun 5 | 1 . . 2 1 1 Energy Cannon 2 | . . . . 1 1 Ballistic Gun 9 | 1 . . . 6 2 Ballistic Cannon . | . . . . . . Launcher 1 | . . . . 1 . Special Weapon . | . . . . . . Impact Weapon . | . . . . . . Slashing Weapon . | . . . . . . Piercing Weapon . | . . . . . . Special Melee Weapon 1 | . . . . . 1 Unidentified Prototypes . | . . . . . . Parts Lost 33 | . . 1 6 20 6 Power 5 | . . 1 1 3 . Propulsion 11 | . . . 2 7 2 Utility 5 | . . . . 5 . Weapon 12 | . . . 3 5 4 Highest Loss Streak 8 | . . 1 4 8 3 To Critical Strikes 1 | . . . . 1 . Average Slot Usage (%) 58 | . 85 83 57 63 20 Engine 3 | . 14 9 1 2 . Core 2 | . . 2 8 2 . Leg 14 | . . . 2 23 . Wheel 5 | . 28 28 13 . 1 Device 5 | . . . 1 7 5 Storage 8 | . 14 14 11 8 . Processor 2 | . . . . 2 5 Energy Gun 7 | . 14 14 10 7 . Ballistic Gun 7 | . 14 14 8 8 . Naked Turns 48 | . . . . 8 40 Heaviest Build 25 | 13 13 13 15 25 7 Greatest Support 43 | 26 26 26 26 43 16 Greatest Overweight (x) 3 | . . . 3 2 2 Average Overweight (x) . | . . . . . . Largest Inventory Capacity 8 | 8 8 8 8 8 5 Average Capacity 7 | 6 8 8 8 7 5 Most Carried 8 | 4 2 3 4 8 5 Average Carried 5 | 1 2 2 2 6 3 Final Capacity 8 | 8 8 8 8 5 5 Final Carried 4 | 2 2 2 2 4 1 Class Distribution -------------------- 71% | Mutant 28% | Scavenger-Mutant Dominant Class ---------------- Mutant | -10/Materials Mutant | -10/Mines Mutant | -9/Materials Mutant | -8/Materials Mutant | -7/Factory Resources | -11 -10 -10 -9 -8 -7 ----------- Run | Jun Mat Min Mat Mat Fac Matter Collected 950 | 260 . 58 72 478 82 Remotely . | . . . . . . Salvage Created 1465 | . . 131 260 845 229 Parts 85 | . . 7 22 39 17 Haulers Intercepted . | . . . . . . Recyclers Shooed . | . . . . . . Parts Field Recycled . | . . . . . . Retrieved Matter . | . . . . . . Parts Self-Destructed . | . . . . . . Prevented . | . . . . . . Kills | -11 -10 -10 -9 -8 -7 ------- Run | Jun Mat Min Mat Mat Fac Combat Hostiles Destroyed 34 | . . 3 7 18 6 Guns 33 | . . 3 7 18 5 Cannons 1 | . . . . . 1 Classes Destroyed 8 | . . 1 3 3 1 Worker 2 | . . . 1 1 . Swarmer 5 | . . . 2 . 3 Grunt 18 | . . 3 4 10 1 Duelist 1 | . . . 1 . . Sentry 4 | . . . . 3 1 Specialist 2 | . . . . 2 . Hunter 3 | . . . . 3 . Programmer 1 | . . . . . 1 Best Kill Streak 5 | . . 3 5 4 3 Combat Bots Only 5 | . . 3 5 4 3 Max Kills in Single Turn 2 | . . 1 1 1 2 Gunslinging . | . . . . . . Exploded . | . . . . . . Melee . | . . . . . . Uniques/NPCs Destroyed . | . . . . . . Combat | -11 -10 -10 -9 -8 -7 -------- Run | Jun Mat Min Mat Mat Fac Damage Taken 3974 | . . 234 369 2384 987 Core 1382 | . . 58 90 517 717 Absorbed by Shields 46 | . . . . . 46 Core Remaining (%) 64 | 100 . 76 77 6 . Volleys Fired 158 | . . 16 24 104 14 Largest 2 | . . 2 2 2 1 Hottest 103 | . . 60 75 103 65 Shots Fired 250 | . . 32 40 164 14 Gun 232 | . . 32 40 148 12 Cannon 15 | . . . . 13 2 Launcher 3 | . . . . 3 . Special . | . . . . . . Kinetic 134 | . . 16 16 93 9 Thermal 97 | . . 16 10 68 3 Explosive 3 | . . . . 3 . Electromagnetic 16 | . . . 14 . 2 Robot Hit Streak 15 | . . 14 5 15 8 Robot Miss Streak 8 | . . 2 3 8 3 Penetration Max 1 | . . . . 1 1 Secondary Targets 7 | . . 3 1 3 . Max Gunslinging Chain 1 | . . 1 1 1 . Shots Hit Robots 185 | . . 27 24 121 13 Core Hits 99 | . . 8 11 65 15 Critical Kills 1 | . . . . 1 . Critical Parts Destroyed . | . . . . . . Critical Strikes 4 | . . . . 4 . Burn 3 | . . . . 3 . Destroy 1 | . . . . 1 . Melee Attacks . | . . . . . . Impact . | . . . . . . Slashing . | . . . . . . Piercing . | . . . . . . Sneak Attacks . | . . . . . . Combat Hostiles . | . . . . . . Follow-up Attacks . | . . . . . . Damage Inflicted 3016 | . . 317 359 2045 295 Guns 2672 | . . 317 356 1755 244 Cannons 283 | . . . . 237 46 Explosions 53 | . . . . 53 . Melee . | . . . . . . Ramming 8 | . . . 3 . 5 Kinetic 1549 | . . 163 131 1053 202 Thermal 1237 | . . 154 102 939 42 Explosive 53 | . . . . 53 . Electromagnetic 169 | . . . 123 . 46 Impact . | . . . . . . Slashing . | . . . . . . Piercing . | . . . . . . Highest Corruption 2 | . . . 2 . . Average Corruption 1 | . . . 1 . . Corruption Purged . | . . . . . . Corruption Blocked . | . . . . . . Effects 2 | . . . 2 . . Heat Flow Errors 1 | . . . 1 . . Parts Fused 1 | . . . 1 . . Overload Shots . | . . . . . . Overflow Damage . | . . . . . . Projectiles . | . . . . . . Explosions . | . . . . . . Melee . | . . . . . . Knockbacks . | . . . . . . Impact . | . . . . . . Kinetic . | . . . . . . Secondary . | . . . . . . Self-Inflicted Damage 3 | . . . 1 . 2 Shots . | . . . . . . Rammed 3 | . . . 1 . 2 Targets Rammed 3 | . . . 1 . 2 Kicked . | . . . . . . Crushed . | . . . . . . Highest Temperature 317 | . . 109 124 317 4 Average Temperature 60 | . . 63 24 69 3 Received Heat Transfer 894 | . . 126 102 567 99 Effects 2 | . . . . 2 . Short Circuit 1 | . . . . 1 . Damage (minor) 1 | . . . . 1 . Siege Activations . | . . . . . . Robots Corrupted . | . . . . . . Combat Hostiles . | . . . . . . Parts Fried . | . . . . . . Impact Corruptions . | . . . . . . Robots Melted . | . . . . . . Combat Hostiles . | . . . . . . Parts Melted 2 | . . 1 1 . . Heat Transferred 2250 | . . 350 211 1639 50 Parts Sabotaged . | . . . . . . Parts Stolen . | . . . . . . Parts Stripped . | . . . . . . Power Chain Reactions . | . . . . . . Missiles Intercepted . | . . . . . . Alert | -11 -10 -10 -9 -8 -7 ------- Run | Jun Mat Min Mat Mat Fac Peak Influence 320 | . 19 150 278 272 320 Initial 117 | . . 7 58 117 35 Average 122 | . 15 68 190 128 99 Maximum Alert Level 1 | . . . 1 1 1 Low Security (%) 77 | 100 100 100 38 82 77 Level 1 22 | . . . 61 17 22 Level 2 . | . . . . . . Level 3 . | . . . . . . Level 4 . | . . . . . . Level 5 . | . . . . . . High Security . | . . . . . . Max Security . | . . . . . . Squads Dispatched 12 | . 1 1 1 5 4 Investigation 2 | . . . . 1 1 Extermination 1 | . . . . . 1 Reinforcement 7 | . 1 . 1 4 1 Assault 1 | . . 1 . . . Garrison 1 | . . . . . 1 Intercept . | . . . . . . Searches Triggered . | . . . . . . Construction Impeded . | . . . . . . Haulers Reinforced . | . . . . . . Active Scanning Responses . | . . . . . . Cargo Convoy Interrupts . | . . . . . . Stealth | -11 -10 -10 -9 -8 -7 --------- Run | Jun Mat Min Mat Mat Fac Distress Signals 5 | . . . 2 3 . Communications Jammed . | . . . . . . Distress Signals . | . . . . . . Times Spotted 73 | . 1 7 16 32 17 Peak Tracking Total 8 | . 1 6 7 5 8 Tactical Retreats 9 | . . . 1 2 6 Traps | -11 -10 -10 -9 -8 -7 ------- Run | Jun Mat Min Mat Mat Fac Traps Triggered 4 | . . . 2 1 1 Indirectly . | . . . . . . Trap Hack Attempts . | . . . . . . Triggered . | . . . . . . Disarmed . | . . . . . . Reprogrammed . | . . . . . . Reused . | . . . . . . Traps Extracted . | . . . . . . Installed . | . . . . . . Triggered . | . . . . . . Machines | -11 -10 -10 -9 -8 -7 ---------- Run | Jun Mat Min Mat Mat Fac Machines Disabled 2 | . . . 1 1 . Max in Single Turn 1 | . . . 1 1 . Machines Repaired . | . . . . . . Machines Sabotaged . | . . . . . . Overloaded Fab Kills . | . . . . . . Hacking | -11 -10 -10 -9 -8 -7 --------- Run | Jun Mat Min Mat Mat Fac Machines Accessed 5 | . 1 1 1 1 1 Terminals 4 | . 1 1 1 1 . Fabricators . | . . . . . . Repair Stations . | . . . . . . Recycling Units 1 | . . . . . 1 Scanalyzers . | . . . . . . Garrison Access . | . . . . . . Total Hacks 13 | . 2 1 1 6 3 Successful 9 | . 2 1 1 4 1 Failed 4 | . . . . 2 2 Catastrophic 1 | . . . . . 1 Database Lockouts . | . . . . . . Manual . | . . . . . . Terminals 10 | . 2 1 1 6 . Fabricators . | . . . . . . Repair Stations . | . . . . . . Recycling Units 3 | . . . . . 3 Scanalyzers . | . . . . . . Garrison Access . | . . . . . . Terminal Hacks 8 | . 2 1 1 4 . Alert Level 3 | . 1 . . 2 . Unreport Threat 1 | . . . . 1 . Locate Traps 3 | . 1 . 1 1 . Zone Layout 1 | . . 1 . . . Fabricator Hacks . | . . . . . . Repair Station Hacks . | . . . . . . Recycling Unit Hacks 1 | . . . . . 1 Retrieve Components 1 | . . . . . 1 Scanalyzer . | . . . . . . Garrison Access Hacks . | . . . . . . Unauthorized Hacks . | . . . . . . Terminals . | . . . . . . Fabricators . | . . . . . . Repair Stations . | . . . . . . Recycling Units . | . . . . . . Scanalyzers . | . . . . . . Garrison Access . | . . . . . . Data Cores Recovered . | . . . . . . Used . | . . . . . . Hacking Detections 3 | . 1 . . 1 1 Full Trace Events 1 | . . . . . 1 Feedback Events . | . . . . . . Feedback Blocked . | . . . . . . Robot Schematics Acquired . | . . . . . . Robots Built . | . . . . . . Authchips . | . . . . . . Time . | . . . . . . Total Robot Build Rating . | . . . . . . Part Schematics Acquired . | . . . . . . Parts Built . | . . . . . . Authchips . | . . . . . . Time . | . . . . . . Total Part Build Rating . | . . . . . . Parts Repaired . | . . . . . . Time . | . . . . . . Parts Recycled . | . . . . . . Recycled Matter . | . . . . . . Retrieved Matter . | . . . . . . Retrieved Components . | . . . . . . Parts Scanalyzed . | . . . . . . Part Schematics Acquired . | . . . . . . Parts Damaged . | . . . . . . Bothacking | -11 -10 -10 -9 -8 -7 ------------ Run | Jun Mat Min Mat Mat Fac Used RIF Installer . | . . . . . . Robots Hacked . | . . . . . . Non-combat . | . . . . . . Combat . | . . . . . . Robot Hacks Applied . | . . . . . . Relay Couplers Released . | . . . . . . Fabnet Peak Effective % . | . . . . . . Robots Rewired . | . . . . . . Allies Hacked . | . . . . . . Hacks Repelled . | . . . . . . Allies | -11 -10 -10 -9 -8 -7 -------- Run | Jun Mat Min Mat Mat Fac Total Allies 1 | . . 1 . . . Largest Group 1 | . . 1 1 . . Highest-Rated Group 31 | . . 31 31 . . Highest-Rated Ally 31 | . . 31 31 . . Total Orders . | . . . . . . Ally Attacks 23 | . . 12 11 . . Total Damage 314 | . . 210 104 . . Kills 6 | . . 3 3 . . Allies Corrupted . | . . . . . . Allies Melted . | . . . . . . Intel | -11 -10 -10 -9 -8 -7 ------- Run | Jun Mat Min Mat Mat Fac Robot Analysis Total . | . . . . . . Derelict Logs Recovered . | . . . . . . Drone Launches . | . . . . . . Drone Recoveries . | . . . . . . Exploration | -11 -10 -10 -9 -8 -7 ------------- Run | Jun Mat Min Mat Mat Fac Turns Passed 2265 | 55 64 163 317 1335 331 Spaces Moved 1638 | 47 71 113 248 739 420 Core 179 | 3 . . 2 24 150 Treads . | . . . . . . Legs 742 | . . . 27 715 . Wheels 481 | 44 71 113 219 . 34 Hover 87 | . . . . . 87 Flight 149 | . . . . . 149 Fastest Speed 35 | 50 90 90 90 50 35 Average Speed 97 | 87 90 90 96 126 51 Slowest Speed 260 | 90 90 90 200 260 150 Overloaded Moves . | . . . . . . Propulsion Burnouts . | . . . . . . Robots Hopped 3 | . . . . . 3 Cave-ins Triggered . | . . . . . . Exploration Rate (%) 19 | 4 20 20 24 37 12 Regions Visited 5 Branch Regions 1 Pre-discovered Areas . | . . . . . . Known Exits Taken . | . . . . . . Unknown Exits Taken 5 | 1 1 1 1 1 . Scrap Searched . | . . . . . . Spaces Dug . | . . . . . . Terrain Destroyed 19 | . . . . 19 . Melee . | . . . . . . Projectile 1 | . . . . 1 . AOE 18 | . . . . 18 . Terrain Rammed . | . . . . . . Walls Destroyed . | . . . . . . Machines Disabled . | . . . . . . Actions | -11 -10 -10 -9 -8 -7 --------- Run | Jun Mat Min Mat Mat Fac Total 2059 | 60 70 142 285 982 520 Wait 156 | . . 12 1 88 55 Move 1627 | 46 70 112 247 738 414 Hop 3 | . . . . . 3 Pick Up 48 | 8 . 1 6 24 9 Fast Attach . | . . . . . . Attach 40 | 6 . 1 6 15 12 Detach . | . . . . . . Swap 7 | . . . . 7 . Drop 8 | . . . . 6 2 Fire 158 | . . 16 24 104 14 Melee . | . . . . . . Ram 3 | . . . 1 . 2 Kick . | . . . . . . Crush . | . . . . . . Escape Stasis 9 | . . . . . 9 Rewire . | . . . . . . Trap . | . . . . . . Miscellaneous . | . . . . . . Route ------- -11/Junkyard -10/Materials (discovered 2 exits: *Mat / *Min) -10/Mines -9/Materials -8/Materials -7/Factory History --------- Turn | Location | Event 9 | -11/Junkyard | Discovered new exit (range 16) 56 | -11/Junkyard | Entered Materials 103 | -10/Materials | Discovered new exit (range 13) 104 | -10/Materials | Discovered new exit (range 15) 120 | -10/Materials | Entered Mines 124 | -10/Mines | Discovered new exit (range 19) 178 | -10/Mines | Met a Derelict testing a Signal Generator 283 | -10/Mines | Entered Materials 283 | -9/Materials | Accompanied by 1 ally 283 | -9/Materials | Evolved 2 slots: Utility x2 310 | -9/Materials | Build established: Mutant 581 | -9/Materials | Lost 4 parts (1p1n2w) 588 | -9/Materials | Discovered new exit (range 10) 600 | -9/Materials | Entered another Materials area 600 | -8/Materials | Evolved 2 slots: Propulsion x1, Utility x1 854 | -8/Materials | Build established: Scavenger-Mutant 1136 | -8/Materials | Lost 5 parts (2n1u2w) 1541 | -8/Materials | Build established: Mutant 1893 | -8/Materials | Core integrity fell below 50% 1917 | -8/Materials | Discovered new exit (range 13) 1923 | -8/Materials | Core integrity fell below 20% 1935 | -8/Materials | Entered Factory 1935 | -7/Factory | Evolved 2 slots: Power x1, Utility x1 1958 | -7/Factory | Lost 8 parts (1p2n2u3w) 2147 | -7/Factory | Core integrity fell below 50% 2173 | -7/Factory | Garrison activated, responded to threat 2206 | -7/Factory | Lost 3 parts (3w) 2266 | -7/Factory | Core integrity fell below 20% 2266 | -7/Factory | Destroyed by exploding Fusion Modulator Last Messages --------------- 02159_ Slammed into G-47 Trooper. 02169_ Assault Rifle destroyed. 02171_ G-47 Trooper destroyed. 02171_ S-27 Virus destroyed. 02173_ S-27 Virus calls for garrison reinforcements. 02173_ ALERT: Activating Garrison Access F004. 02175_ S-27 Virus destroyed. 02175_ Spread Laser destroyed. 02178_ R-06 Scavenger collects Lgt. Nuclear Core. 02178_ Acquired 57 matter. 02184_ Acquired Gauss Rifle. 02185_ ALERT: Rogue bot located, Programmers report to Factory Zone 6X. 02190_ O-24 Administrator: "IFF HANDSHAKE FAILED. SECURING TERMINAL." 02254_ ALERT: Hostiles spotted, dispatching reinforcements to Terminal F018. 02257_ Slug penetrates P-60 Hacker. 02261_ P-60 Hacker destroyed. 02265_ Slug penetrates Y-54 Guardian. 02265_ Y-54 Guardian destroyed. 02266_ Fusion Modulator explodes. Map ----- +----------------------------------------------------+ | ## # #???# #????????????????# | | ########## #???###+#+###### #????????????????# | | ##???????# #????????????????#????????????????# | | [######### #?????????????????????????????????# | | #?????????????????????????????????# | | ### #?????????????????????????????????# | | ##?# #?????????????????????????????????#### | | ##"" #????????????????????????????????????? | | ##"" #????????????????????????????????????? | | ##"T !!! #????????????????????????????????????? | | ##"" !!! #????????????????????????????????????? | | ##"" !!! #????????????????????????????????????? | | #### #????????????????????????????????????? | | #??# #????????????????????????????????????? | | #??###"T"###????????????????????????????????????? | | #????#####??????????????????????????????????????? | | #???????????????????????????????????????????????? | | ###?????????????????????????????????????????????? | | ########################??????????????????????? | | # = ##?????????????????????? | | # ;#?????????????????????? | | """ # ;##????????????????????? | | "Y" # """ ; #????????????????????? | | " " # """ ; #????????????????????? | | + """= ;#?????????????????????? | | # g !%= @;#?????????????????????? | | #######;;; ;;#????????????????????? | | #?????###;; # ???????????????????? | | #???? ! # # ?????????????????? | | #?? ???# # #####? ???????????????? | | #?????????#?##??????? #####??????????????? | | """" #?????????????????????#??????????????????? | | """" #????????????????????????????????????????? | | """" #????????????????????????????????????????? | | ??"" +????????????????????????????????????????? | | ???" #????????????????????????????????????????? | | ???" #????????????????????????????????????????? | | ???" ?????????????????????????????????????????? | | ??? ?????????????????????????????????????????? | | ????? ?????????????????????????????????????????? | | ?????????????????????????????????????????????????? | | ?????????????????????????????????????????????????? | | ?????????????????????????????????????????????????? | | ?????????????????????????????????????????????????? | | ?????????????????????????????????????????????????? | | ?????????????????????????????????????????????????? | | ?????????????????????????????????????????????????? | | ?????????????????????????????????????????????????? | | ?????????????????????????????????????????????????? | | ?????????????????????????????????????????????????? | +----------------------------------------------------+ Best States ------------- Heat Dissipation 41 Energy Generation 18 Energy Capacity 290 Matter Stores 300 Matter Capacity 300 Sight Range 16 Terrain Scan Density 10 Evasion (%) 63 Targeting Accuracy 8 Energy Filtering 30 Item Schematics ----------------- None Robot Schematics ------------------ None Fabricated ------------ Nothing Alien Tech Used ----------------- None Achievements -------------- None Challenges ------------ None Game ------ Seed ReflectiveLauncherAutocannon Manual? 0 Play Time 00:31:24 Cumulative 118.9 hours Start 2023.12.28 @ 20:47:15 End 2023.12.28 @ 21:26:04 Sessions 1 Manual Loads 0 Difficulty Rogue Special Mode None Game No. 112 Rogue 112 Adventurer 0 Explorer 0 Win Type - Total 0 Types 0/0/0/0/0/0/0/0/0 Lore% 35 Gallery% 41 Achievement% 30 Wizard Run 0 Options --------- ASCII 0 Keyboard 0 Movement Arrows Keybinds 0 Fullscreen 1 Font 18/SmallcapsGlow Map View 76x50 Tactical HUD 1 Map Filters NONE Filters NONE Steam 1 RUN: a54970f7-1e33-4f43-96dc-24c4b08da110